[Event "Live Chess"]
[Site "Chess.com"]
[Date "2011.01.29"]
[Round "-"]
[White "PeaceChess"]
[Black "hipposcottimus"]
[Result "0-1"]
[CurrentPosition "r6k/pp2N1pp/3p4/8/6bn/8/Pq4P1/R4RK1 w - -"]
[Timezone "UTC"]
[ECO "A00"]
[ECOUrl "https://www.chess.com/openings/Van-Geet-Opening-Reversed-Nimzowitsch-Variation-2.d4"]
[UTCDate "2011.01.29"]
[UTCTime "22:51:41"]
[WhiteElo "1285"]
[BlackElo "1629"]
[TimeControl "60"]
[Termination "hipposcottimus won on time"]
[StartTime "22:51:41"]
[EndDate "2011.01.29"]
[EndTime "22:53:49"]
[Link "https://www.chess.com/game/live/92759268"]

1. d4 {[%clk 0:01:00]} 1... e5 {[%clk 0:01:00]} 2. Nc3 {[%clk 0:00:59.9]} 2... exd4 {[%clk 0:00:59]} 3. Qxd4 {[%clk 0:00:59.4]} 3... f6 {[%clk 0:00:58.8]} 4. Bf4 {[%clk 0:00:58.4]} 4... d6 {[%clk 0:00:58.5]} 5. e4 {[%clk 0:00:55]} 5... Nd7 {[%clk 0:00:58.1]} 6. Bc4 {[%clk 0:00:53.9]} 6... c5 {[%clk 0:00:57.7]} 7. Qd5 {[%clk 0:00:53]} 7... Qe7 {[%clk 0:00:53.3]} 8. Nb5 {[%clk 0:00:51.4]} 8... Nb6 {[%clk 0:00:52.5]} 9. Nc7+ {[%clk 0:00:46.1]} 9... Qxc7 {[%clk 0:00:50.1]} 10. Qd3 {[%clk 0:00:40.9]} 10... Ne7 {[%clk 0:00:47.9]} 11. Bb3 {[%clk 0:00:39.2]} 11... c4 {[%clk 0:00:46.3]} 12. Bxc4 {[%clk 0:00:38]} 12... Nxc4 {[%clk 0:00:44.3]} 13. Qg3 {[%clk 0:00:37.3]} 13... Ne5 {[%clk 0:00:37.9]} 14. Ne2 {[%clk 0:00:30.8]} 14... N7g6 {[%clk 0:00:36.9]} 15. Be3 {[%clk 0:00:28.9]} 15... Be7 {[%clk 0:00:35.8]} 16. O-O {[%clk 0:00:28.3]} 16... Qxc2 {[%clk 0:00:33.5]} 17. Nc3 {[%clk 0:00:23.5]} 17... Qxb2 {[%clk 0:00:31.4]} 18. Nd5 {[%clk 0:00:22.5]} 18... O-O {[%clk 0:00:28.2]} 19. h4 {[%clk 0:00:19.8]} 19... Be6 {[%clk 0:00:25.5]} 20. h5 {[%clk 0:00:16.2]} 20... f5 {[%clk 0:00:19]} 21. hxg6 {[%clk 0:00:14.3]} 21... Nxg6 {[%clk 0:00:18.6]} 22. exf5 {[%clk 0:00:12]} 22... Bh4 {[%clk 0:00:18]} 23. Qg5 {[%clk 0:00:08.3]} 23... Rxf5 {[%clk 0:00:13.3]} 24. Qg4 {[%clk 0:00:05.2]} 24... Rxf2 {[%clk 0:00:10.9]} 25. Bxf2 {[%clk 0:00:03.3]} 25... Bxg4 {[%clk 0:00:09.3]} 26. Bxh4 {[%clk 0:00:01.9]} 26... Nxh4 {[%clk 0:00:08.5]} 27. Ne7+ {[%clk 0:00:00.2]} 27... Kh8 {[%clk 0:00:05.4]} 0-1

[Event "Live Chess"]
[Site "Chess.com"]
[Date "2011.01.29"]
[Round "-"]
[White "hipposcottimus"]
[Black "PeaceChess"]
[Result "0-1"]
[CurrentPosition "4r3/1p1k1r2/p2p1p2/4n1p1/4Q3/8/PPP3PP/4R1K1 w - -"]
[Timezone "UTC"]
[ECO "C43"]
[ECOUrl "https://www.chess.com/openings/Petrovs-Defense-Steinitz-Attack-3...exd4-4.e5"]
[UTCDate "2011.01.29"]
[UTCTime "22:49:03"]
[WhiteElo "1627"]
[BlackElo "1287"]
[TimeControl "60"]
[Termination "PeaceChess won on time"]
[StartTime "22:49:03"]
[EndDate "2011.01.29"]
[EndTime "22:51:13"]
[Link "https://www.chess.com/game/live/92758636"]

1. e4 {[%clk 0:01:00]} 1... e5 {[%clk 0:01:00]} 2. Nf3 {[%clk 0:00:56.5]} 2... Nf6 {[%clk 0:00:59.9]} 3. d4 {[%clk 0:00:56]} 3... exd4 {[%clk 0:00:58.7]} 4. e5 {[%clk 0:00:54.8]} 4... d6 {[%clk 0:00:58.6]} 5. exf6 {[%clk 0:00:53.2]} 5... Qxf6 {[%clk 0:00:57.8]} 6. Nxd4 {[%clk 0:00:53]} 6... Be7 {[%clk 0:00:55.9]} 7. Be2 {[%clk 0:00:50.2]} 7... O-O {[%clk 0:00:54.7]} 8. O-O {[%clk 0:00:49.2]} 8... Qg6 {[%clk 0:00:54.1]} 9. f4 {[%clk 0:00:44.8]} 9... Nd7 {[%clk 0:00:51.1]} 10. f5 {[%clk 0:00:43.5]} 10... Qf6 {[%clk 0:00:48.5]} 11. Nb5 {[%clk 0:00:35.7]} 11... Bd8 {[%clk 0:00:44.8]} 12. N1c3 {[%clk 0:00:33.9]} 12... a6 {[%clk 0:00:44.2]} 13. Nd5 {[%clk 0:00:32.7]} 13... Qh4 {[%clk 0:00:38.3]} 14. Rf4 {[%clk 0:00:27.2]} 14... Qh6 {[%clk 0:00:33.1]} 15. Nbxc7 {[%clk 0:00:23.9]} 15... Bxc7 {[%clk 0:00:31.6]} 16. Nxc7 {[%clk 0:00:23.6]} 16... Rb8 {[%clk 0:00:31]} 17. Nd5 {[%clk 0:00:22.1]} 17... Ne5 {[%clk 0:00:28.6]} 18. Ne7+ {[%clk 0:00:19.5]} 18... Kh8 {[%clk 0:00:25.5]} 19. Rg4 {[%clk 0:00:17.8]} 19... Qf6 {[%clk 0:00:22.5]} 20. Nxc8 {[%clk 0:00:14.6]} 20... Rbxc8 {[%clk 0:00:20.3]} 21. Bg5 {[%clk 0:00:14.2]} 21... Qxf5 {[%clk 0:00:18.8]} 22. Rg3 {[%clk 0:00:13.8]} 22... h6 {[%clk 0:00:17.1]} 23. Bd3 {[%clk 0:00:13.1]} 23... Qxg5 {[%clk 0:00:15.1]} 24. Rxg5 {[%clk 0:00:11.6]} 24... hxg5 {[%clk 0:00:14.3]} 25. Qe1 {[%clk 0:00:10.9]} 25... f6 {[%clk 0:00:13.1]} 26. Qg3 {[%clk 0:00:10.2]} 26... Kg8 {[%clk 0:00:11.9]} 27. Qh3 {[%clk 0:00:09.5]} 27... Kf7 {[%clk 0:00:10.3]} 28. Qh5+ {[%clk 0:00:07.7]} 28... Ke7 {[%clk 0:00:09.3]} 29. Qh7 {[%clk 0:00:05.6]} 29... Nxd3 {[%clk 0:00:08.1]} 30. Qxg7+ {[%clk 0:00:04.5]} 30... Rf7 {[%clk 0:00:07.4]} 31. Qg6 {[%clk 0:00:02.6]} 31... Ne5 {[%clk 0:00:07]} 32. Re1 {[%clk 0:00:01.4]} 32... Re8 {[%clk 0:00:06.6]} 33. Qe4 {[%clk 0:00:00.6]} 33... Kd7 {[%clk 0:00:06]} 0-1

[Event "Live Chess"]
[Site "Chess.com"]
[Date "2011.01.29"]
[Round "-"]
[White "PeaceChess"]
[Black "hipposcottimus"]
[Result "1/2-1/2"]
[CurrentPosition "8/4N3/8/8/8/4R1P1/1k3P1P/4Q1K1 w - -"]
[Timezone "UTC"]
[ECO "C21"]
[ECOUrl "https://www.chess.com/openings/Center-Game-Accepted-Kieseritzky-Variation-3...c5"]
[UTCDate "2011.01.29"]
[UTCTime "22:46:22"]
[WhiteElo "1272"]
[BlackElo "1640"]
[TimeControl "60"]
[Termination "Game drawn by insufficient material"]
[StartTime "22:46:22"]
[EndDate "2011.01.29"]
[EndTime "22:48:39"]
[Link "https://www.chess.com/game/live/92757882"]

1. e4 {[%clk 0:01:00]} 1... e5 {[%clk 0:01:00]} 2. d4 {[%clk 0:00:59.5]} 2... exd4 {[%clk 0:00:59.7]} 3. Nf3 {[%clk 0:00:59.1]} 3... c5 {[%clk 0:00:58.9]} 4. c3 {[%clk 0:00:58.7]} 4... d6 {[%clk 0:00:58.6]} 5. cxd4 {[%clk 0:00:57.3]} 5... Bg4 {[%clk 0:00:58.2]} 6. dxc5 {[%clk 0:00:55.4]} 6... Qa5+ {[%clk 0:00:56.9]} 7. Nc3 {[%clk 0:00:52.2]} 7... Qxc5 {[%clk 0:00:56.2]} 8. Be2 {[%clk 0:00:51.3]} 8... Bxf3 {[%clk 0:00:55.3]} 9. Bxf3 {[%clk 0:00:50.6]} 9... Be7 {[%clk 0:00:54.7]} 10. O-O {[%clk 0:00:49.4]} 10... Nf6 {[%clk 0:00:54.2]} 11. Be3 {[%clk 0:00:48.9]} 11... Qe5 {[%clk 0:00:52.8]} 12. g3 {[%clk 0:00:45.1]} 12... Nc6 {[%clk 0:00:52]} 13. Bf4 {[%clk 0:00:44.1]} 13... Qe6 {[%clk 0:00:51.5]} 14. Nb5 {[%clk 0:00:40.8]} 14... Rc8 {[%clk 0:00:46.3]} 15. e5 {[%clk 0:00:37.9]} 15... dxe5 {[%clk 0:00:43.8]} 16. Bxc6+ {[%clk 0:00:37]} 16... Nd7 {[%clk 0:00:39.5]} 17. Bxd7+ {[%clk 0:00:35]} 17... Qxd7 {[%clk 0:00:39.3]} 18. Qxd7+ {[%clk 0:00:31.8]} 18... Kxd7 {[%clk 0:00:39]} 19. Bxe5 {[%clk 0:00:30.9]} 19... Ke8 {[%clk 0:00:38.7]} 20. Bxg7 {[%clk 0:00:30]} 20... Rg8 {[%clk 0:00:38.4]} 21. Be5 {[%clk 0:00:29.1]} 21... Rg6 {[%clk 0:00:38.1]} 22. Nxa7 {[%clk 0:00:28.1]} 22... Kf8 {[%clk 0:00:37.8]} 23. Bf4 {[%clk 0:00:22.2]} 23... Ra8 {[%clk 0:00:35.3]} 24. Nb5 {[%clk 0:00:21.1]} 24... Kg8 {[%clk 0:00:34]} 25. Nc7 {[%clk 0:00:20.1]} 25... Bc5 {[%clk 0:00:33.6]} 26. Nxa8 {[%clk 0:00:18.8]} 26... Bd6 {[%clk 0:00:33.3]} 27. Bxd6 {[%clk 0:00:17.2]} 27... Rxd6 {[%clk 0:00:33]} 28. Nc7 {[%clk 0:00:16.5]} 28... Rc6 {[%clk 0:00:32.1]} 29. Nb5 {[%clk 0:00:16]} 29... Rc5 {[%clk 0:00:31.4]} 30. Nc3 {[%clk 0:00:15.6]} 30... Rd5 {[%clk 0:00:30.1]} 31. a4 {[%clk 0:00:15.1]} 31... Re5 {[%clk 0:00:28.9]} 32. a5 {[%clk 0:00:14.3]} 32... Rg5 {[%clk 0:00:28.4]} 33. a6 {[%clk 0:00:13.7]} 33... bxa6 {[%clk 0:00:28.1]} 34. Rxa6 {[%clk 0:00:12.3]} 34... Rg7 {[%clk 0:00:27.9]} 35. Rb1 {[%clk 0:00:11.3]} 35... h6 {[%clk 0:00:27.6]} 36. b4 {[%clk 0:00:10.9]} 36... Kh7 {[%clk 0:00:27.3]} 37. b5 {[%clk 0:00:10.8]} 37... Rg6 {[%clk 0:00:26.9]} 38. b6 {[%clk 0:00:10.7]} 38... Rf6 {[%clk 0:00:25.2]} 39. b7 {[%clk 0:00:08.9]} 39... Rxa6 {[%clk 0:00:24.9]} 40. b8=Q {[%clk 0:00:08.5]} 40... Ra1 {[%clk 0:00:22.9]} 41. Qb3 {[%clk 0:00:07.1]} 41... Kg7 {[%clk 0:00:22.6]} 42. Rxa1 {[%clk 0:00:05.6]} 42... f6 {[%clk 0:00:21.1]} 43. Ra4 {[%clk 0:00:05.5]} 43... Kg6 {[%clk 0:00:20.8]} 44. Rh4 {[%clk 0:00:05.1]} 44... f5 {[%clk 0:00:20.5]} 45. Qa4 {[%clk 0:00:04.3]} 45... Kg5 {[%clk 0:00:19.9]} 46. Qf4+ {[%clk 0:00:03.1]} 46... Kf6 {[%clk 0:00:19.6]} 47. Nd5+ {[%clk 0:00:02.7]} 47... Ke6 {[%clk 0:00:18.7]} 48. Rh5 {[%clk 0:00:02.3]} 48... Kd7 {[%clk 0:00:17.6]} 49. Rxf5 {[%clk 0:00:02.2]} 49... Kc6 {[%clk 0:00:17]} 50. Qxh6+ {[%clk 0:00:01.9]} 50... Kb5 {[%clk 0:00:16.7]} 51. Qe6 {[%clk 0:00:01.4]} 51... Kc4 {[%clk 0:00:16.4]} 52. Ne7+ {[%clk 0:00:01.3]} 52... Kc3 {[%clk 0:00:16.1]} 53. Rf3+ {[%clk 0:00:01.2]} 53... Kc2 {[%clk 0:00:15.8]} 54. Qe2+ {[%clk 0:00:00.3]} 54... Kb1 {[%clk 0:00:14.3]} 55. Re3 {[%clk 0:00:00.2]} 55... Kc1 {[%clk 0:00:13.3]} 56. Qe1+ {[%clk 0:00:00.1]} 56... Kb2 {[%clk 0:00:11.7]} 1/2-1/2

[Event "Live Chess"]
[Site "Chess.com"]
[Date "2011.01.29"]
[Round "-"]
[White "hipposcottimus"]
[Black "PeaceChess"]
[Result "1-0"]
[CurrentPosition "8/p7/1N4k1/5p1p/8/1P6/P5PP/5R1K b - -"]
[Timezone "UTC"]
[ECO "C41"]
[ECOUrl "https://www.chess.com/openings/Philidor-Defense-Exchange-Variation"]
[UTCDate "2011.01.29"]
[UTCTime "22:43:31"]
[WhiteElo "1646"]
[BlackElo "1266"]
[TimeControl "60"]
[Termination "hipposcottimus won by resignation"]
[StartTime "22:43:31"]
[EndDate "2011.01.29"]
[EndTime "22:45:40"]
[Link "https://www.chess.com/game/live/92757196"]

1. e4 {[%clk 0:01:00]} 1... e5 {[%clk 0:01:00]} 2. d4 {[%clk 0:00:59.3]} 2... exd4 {[%clk 0:00:58]} 3. Nf3 {[%clk 0:00:59]} 3... d6 {[%clk 0:00:57]} 4. c3 {[%clk 0:00:58.7]} 4... dxc3 {[%clk 0:00:55.2]} 5. Nxc3 {[%clk 0:00:58.4]} 5... Nf6 {[%clk 0:00:54.8]} 6. Be2 {[%clk 0:00:56.9]} 6... Be7 {[%clk 0:00:54.3]} 7. O-O {[%clk 0:00:56.6]} 7... O-O {[%clk 0:00:54.2]} 8. Bg5 {[%clk 0:00:56.3]} 8... Bg4 {[%clk 0:00:54.1]} 9. e5 {[%clk 0:00:55.9]} 9... dxe5 {[%clk 0:00:52.8]} 10. Nxe5 {[%clk 0:00:53.9]} 10... Bxe2 {[%clk 0:00:50.8]} 11. Qxe2 {[%clk 0:00:53.6]} 11... Bd6 {[%clk 0:00:48.9]} 12. Bxf6 {[%clk 0:00:50.7]} 12... Qxf6 {[%clk 0:00:45.5]} 13. Ng4 {[%clk 0:00:49.9]} 13... Qg6 {[%clk 0:00:44.2]} 14. f3 {[%clk 0:00:48.7]} 14... Nc6 {[%clk 0:00:43.1]} 15. Ne4 {[%clk 0:00:45.3]} 15... Rae8 {[%clk 0:00:39.2]} 16. Qb5 {[%clk 0:00:43.5]} 16... Bf4 {[%clk 0:00:35.9]} 17. Qxb7 {[%clk 0:00:40.6]} 17... Ne5 {[%clk 0:00:34.4]} 18. Qxc7 {[%clk 0:00:36.5]} 18... Rc8 {[%clk 0:00:29]} 19. Qd6 {[%clk 0:00:30.9]} 19... Rfd8 {[%clk 0:00:27.8]} 20. Qxg6 {[%clk 0:00:29.6]} 20... Nxg6 {[%clk 0:00:26.8]} 21. Rae1 {[%clk 0:00:26.9]} 21... Bc7 {[%clk 0:00:20.1]} 22. b3 {[%clk 0:00:26]} 22... Bb6+ {[%clk 0:00:19.5]} 23. Kh1 {[%clk 0:00:24.5]} 23... h6 {[%clk 0:00:18.9]} 24. f4 {[%clk 0:00:18.5]} 24... h5 {[%clk 0:00:18]} 25. Ne5 {[%clk 0:00:17.3]} 25... Nxe5 {[%clk 0:00:16.8]} 26. fxe5 {[%clk 0:00:16.9]} 26... Re8 {[%clk 0:00:16.2]} 27. Ng5 {[%clk 0:00:16.1]} 27... f6 {[%clk 0:00:10.8]} 28. exf6 {[%clk 0:00:15.1]} 28... Rxe1 {[%clk 0:00:10]} 29. Rxe1 {[%clk 0:00:14.8]} 29... gxf6 {[%clk 0:00:08.9]} 30. Ne4 {[%clk 0:00:14.6]} 30... f5 {[%clk 0:00:07.7]} 31. Ng5 {[%clk 0:00:13.6]} 31... Rf8 {[%clk 0:00:06.5]} 32. Rf1 {[%clk 0:00:13.2]} 32... Rf6 {[%clk 0:00:05.7]} 33. Nf3 {[%clk 0:00:12.8]} 33... Kg7 {[%clk 0:00:05.3]} 34. Ne5 {[%clk 0:00:11.4]} 34... Kh7 {[%clk 0:00:03.4]} 35. Nd7 {[%clk 0:00:11]} 35... Kh6 {[%clk 0:00:03.3]} 36. Nxf6 {[%clk 0:00:09.8]} 36... Kg5 {[%clk 0:00:03.2]} 37. Nd7 {[%clk 0:00:09.1]} 37... Kg6 {[%clk 0:00:02.1]} 38. Nxb6 {[%clk 0:00:08.3]} 1-0

[Event "Live Chess"]
[Site "Chess.com"]
[Date "2011.01.29"]
[Round "-"]
[White "PeaceChess"]
[Black "hipposcottimus"]
[Result "1-0"]
[CurrentPosition "8/8/8/3BbK2/3kP3/8/8/8 b - -"]
[Timezone "UTC"]
[ECO "C21"]
[ECOUrl "https://www.chess.com/openings/Center-Game-Accepted-Kieseritzky-Variation-3...c5"]
[UTCDate "2011.01.29"]
[UTCTime "22:40:21"]
[WhiteElo "1268"]
[BlackElo "1644"]
[TimeControl "60"]
[Termination "PeaceChess won on time"]
[StartTime "22:40:21"]
[EndDate "2011.01.29"]
[EndTime "22:42:52"]
[Link "https://www.chess.com/game/live/92756281"]

1. e4 {[%clk 0:01:00]} 1... e5 {[%clk 0:01:00]} 2. d4 {[%clk 0:00:59.6]} 2... exd4 {[%clk 0:00:58.8]} 3. Nf3 {[%clk 0:00:59.3]} 3... c5 {[%clk 0:00:56.9]} 4. c3 {[%clk 0:00:57.6]} 4... d6 {[%clk 0:00:54.2]} 5. cxd4 {[%clk 0:00:56.2]} 5... Bg4 {[%clk 0:00:53.9]} 6. dxc5 {[%clk 0:00:54.1]} 6... Bxf3 {[%clk 0:00:53.5]} 7. gxf3 {[%clk 0:00:52.6]} 7... dxc5 {[%clk 0:00:52.9]} 8. Qxd8+ {[%clk 0:00:51.5]} 8... Kxd8 {[%clk 0:00:52.7]} 9. Bc4 {[%clk 0:00:50.9]} 9... Nd7 {[%clk 0:00:52.5]} 10. Bxf7 {[%clk 0:00:49.8]} 10... Ngf6 {[%clk 0:00:51.7]} 11. Bb3 {[%clk 0:00:49.2]} 11... Kc7 {[%clk 0:00:51.2]} 12. Nc3 {[%clk 0:00:48.3]} 12... Rd8 {[%clk 0:00:49.3]} 13. Be3 {[%clk 0:00:47.4]} 13... Kb8 {[%clk 0:00:46.4]} 14. O-O-O {[%clk 0:00:44.8]} 14... Rc8 {[%clk 0:00:45]} 15. Nd5 {[%clk 0:00:41.9]} 15... Ka8 {[%clk 0:00:43.3]} 16. Nxf6 {[%clk 0:00:38.1]} 16... Nxf6 {[%clk 0:00:42.9]} 17. Kb1 {[%clk 0:00:36.6]} 17... c4 {[%clk 0:00:42]} 18. Bc2 {[%clk 0:00:35.1]} 18... Bb4 {[%clk 0:00:40.2]} 19. Bg5 {[%clk 0:00:33.1]} 19... c3 {[%clk 0:00:39]} 20. b3 {[%clk 0:00:31.5]} 20... Nh5 {[%clk 0:00:33.5]} 21. Rd3 {[%clk 0:00:28.4]} 21... Nf6 {[%clk 0:00:33]} 22. Bxf6 {[%clk 0:00:26.1]} 22... gxf6 {[%clk 0:00:32.7]} 23. Rg1 {[%clk 0:00:25]} 23... Rhd8 {[%clk 0:00:32.4]} 24. Rxd8 {[%clk 0:00:23.2]} 24... Rxd8 {[%clk 0:00:32.1]} 25. Rd1 {[%clk 0:00:22.6]} 25... Rd2 {[%clk 0:00:29.8]} 26. Rxd2 {[%clk 0:00:20.7]} 26... cxd2 {[%clk 0:00:29.5]} 27. Bd1 {[%clk 0:00:20.6]} 27... a6 {[%clk 0:00:28.2]} 28. Kb2 {[%clk 0:00:20]} 28... b5 {[%clk 0:00:27.4]} 29. a3 {[%clk 0:00:19.5]} 29... Bc5 {[%clk 0:00:23.8]} 30. Kc2 {[%clk 0:00:15]} 30... Bxf2 {[%clk 0:00:23.5]} 31. Kxd2 {[%clk 0:00:14.4]} 31... Kb7 {[%clk 0:00:23.1]} 32. Kd3 {[%clk 0:00:13.3]} 32... Bh4 {[%clk 0:00:22.7]} 33. b4 {[%clk 0:00:11.8]} 33... Bg5 {[%clk 0:00:22.2]} 34. Kd4 {[%clk 0:00:10.3]} 34... Kb6 {[%clk 0:00:21.8]} 35. Kd5 {[%clk 0:00:09.9]} 35... a5 {[%clk 0:00:20.7]} 36. bxa5+ {[%clk 0:00:07.7]} 36... Kxa5 {[%clk 0:00:20.4]} 37. Ke6 {[%clk 0:00:07.3]} 37... b4 {[%clk 0:00:18.9]} 38. axb4+ {[%clk 0:00:05.3]} 38... Kxb4 {[%clk 0:00:17.6]} 39. Kf7 {[%clk 0:00:05.1]} 39... Kc4 {[%clk 0:00:17.2]} 40. Kg7 {[%clk 0:00:04.7]} 40... h5 {[%clk 0:00:16.8]} 41. Kg6 {[%clk 0:00:03.6]} 41... h4 {[%clk 0:00:16.1]} 42. f4 {[%clk 0:00:02.9]} 42... Bxf4 {[%clk 0:00:15.4]} 43. Kxf6 {[%clk 0:00:02.1]} 43... Bxh2 {[%clk 0:00:15.1]} 44. Kf5 {[%clk 0:00:02]} 44... h3 {[%clk 0:00:13.1]} 45. Bg4 {[%clk 0:00:01.9]} 45... Kd4 {[%clk 0:00:10.4]} 46. Bxh3 {[%clk 0:00:01.8]} 46... Ke3 {[%clk 0:00:09.5]} 47. Bg4 {[%clk 0:00:01.7]} 47... Kd4 {[%clk 0:00:07.9]} 48. Bh5 {[%clk 0:00:01.6]} 48... Be5 {[%clk 0:00:06.6]} 49. Bg6 {[%clk 0:00:01.5]} 49... Bd6 {[%clk 0:00:05.3]} 50. Bf7 {[%clk 0:00:01.4]} 50... Be5 {[%clk 0:00:04.5]} 51. Bd5 {[%clk 0:00:01.3]} 51... Bd6 {[%clk 0:00:03.5]} 52. Bf7 {[%clk 0:00:01.2]} 52... Be5 {[%clk 0:00:02.9]} 53. Bd5 {[%clk 0:00:01.1]} 53... Bd6 {[%clk 0:00:02.5]} 54. Bf7 {[%clk 0:00:01]} 54... Be5 {[%clk 0:00:02.2]} 55. Bd5 {[%clk 0:00:00.9]} 55... Bd6 {[%clk 0:00:01.9]} 56. Bf7 {[%clk 0:00:00.8]} 56... Be5 {[%clk 0:00:01.6]} 57. Bd5 {[%clk 0:00:00.7]} 57... Bd6 {[%clk 0:00:01.4]} 58. Bf7 {[%clk 0:00:00.6]} 58... Be5 {[%clk 0:00:01.1]} 59. Bd5 {[%clk 0:00:00.5]} 59... Bd6 {[%clk 0:00:00.9]} 60. Bf7 {[%clk 0:00:00.4]} 60... Be5 {[%clk 0:00:00.7]} 61. Bd5 {[%clk 0:00:00.3]} 61... Bd6 {[%clk 0:00:00.5]} 62. Bf7 {[%clk 0:00:00.2]} 62... Be5 {[%clk 0:00:00.2]} 63. Bd5 {[%clk 0:00:00.1]} 1-0

[Event "Live Chess"]
[Site "Chess.com"]
[Date "2011.01.29"]
[Round "-"]
[White "hipposcottimus"]
[Black "PeaceChess"]
[Result "0-1"]
[CurrentPosition "2k4r/pp4p1/b1pb3p/8/Q1P5/6R1/PP1q1P1P/K3R3 w - -"]
[Timezone "UTC"]
[ECO "C42"]
[ECOUrl "https://www.chess.com/openings/Petrovs-Defense-Urusov-Gambit"]
[UTCDate "2011.01.29"]
[UTCTime "22:37:28"]
[WhiteElo "1658"]
[BlackElo "1252"]
[TimeControl "60"]
[Termination "PeaceChess won on time"]
[StartTime "22:37:28"]
[EndDate "2011.01.29"]
[EndTime "22:39:26"]
[Link "https://www.chess.com/game/live/92755683"]

1. e4 {[%clk 0:01:00]} 1... e5 {[%clk 0:01:00]} 2. Nf3 {[%clk 0:00:59.6]} 2... Nf6 {[%clk 0:00:59.9]} 3. Bc4 {[%clk 0:00:58.8]} 3... d6 {[%clk 0:00:59.4]} 4. d4 {[%clk 0:00:56.8]} 4... Be6 {[%clk 0:00:59]} 5. dxe5 {[%clk 0:00:55.4]} 5... Bxc4 {[%clk 0:00:55.4]} 6. exf6 {[%clk 0:00:54.1]} 6... Qxf6 {[%clk 0:00:54]} 7. Bg5 {[%clk 0:00:50.5]} 7... Qg6 {[%clk 0:00:50.1]} 8. Nbd2 {[%clk 0:00:45.9]} 8... Ba6 {[%clk 0:00:48]} 9. c4 {[%clk 0:00:45.1]} 9... h6 {[%clk 0:00:46.3]} 10. Bh4 {[%clk 0:00:34.6]} 10... Qxg2 {[%clk 0:00:45.1]} 11. Rg1 {[%clk 0:00:34.3]} 11... Qh3 {[%clk 0:00:43.3]} 12. Rg3 {[%clk 0:00:30.7]} 12... Qe6 {[%clk 0:00:41.5]} 13. Qa4+ {[%clk 0:00:22.1]} 13... c6 {[%clk 0:00:39.2]} 14. O-O-O {[%clk 0:00:19.3]} 14... Nd7 {[%clk 0:00:37.1]} 15. Kb1 {[%clk 0:00:18.3]} 15... Nf6 {[%clk 0:00:35.8]} 16. Bxf6 {[%clk 0:00:16.8]} 16... Qxf6 {[%clk 0:00:34.2]} 17. e5 {[%clk 0:00:16.5]} 17... Qe6 {[%clk 0:00:31.3]} 18. Ne4 {[%clk 0:00:16]} 18... O-O-O {[%clk 0:00:28.9]} 19. exd6 {[%clk 0:00:14.1]} 19... Qxe4+ {[%clk 0:00:26.4]} 20. Ka1 {[%clk 0:00:11.6]} 20... Rxd6 {[%clk 0:00:23.9]} 21. Re1 {[%clk 0:00:05.5]} 21... Qd3 {[%clk 0:00:21.9]} 22. Ne5 {[%clk 0:00:02.8]} 22... Qd4 {[%clk 0:00:18]} 23. Nxf7 {[%clk 0:00:01.4]} 23... Qd2 {[%clk 0:00:16.2]} 24. Nxd6+ {[%clk 0:00:00.2]} 24... Bxd6 {[%clk 0:00:14.3]} 0-1

[Event "Live Chess"]
[Site "Chess.com"]
[Date "2011.01.29"]
[Round "-"]
[White "hipposcottimus"]
[Black "polygonmon"]
[Result "0-1"]
[CurrentPosition "8/2k5/pp2p1p1/8/2P1Pbp1/1P4PP/P7/5K2 w - -"]
[Timezone "UTC"]
[ECO "B20"]
[ECOUrl "https://www.chess.com/openings/Sicilian-Defense"]
[UTCDate "2011.01.29"]
[UTCTime "22:34:43"]
[WhiteElo "1672"]
[BlackElo "1677"]
[TimeControl "60"]
[Termination "polygonmon won on time"]
[StartTime "22:34:43"]
[EndDate "2011.01.29"]
[EndTime "22:37:01"]
[Link "https://www.chess.com/game/live/92754974"]

1. e4 {[%clk 0:01:00]} 1... c5 {[%clk 0:01:00]} 2. Bb5 {[%clk 0:00:58.2]} 2... a6 {[%clk 0:00:57.5]} 3. Be2 {[%clk 0:00:57.9]} 3... Nc6 {[%clk 0:00:55.9]} 4. c4 {[%clk 0:00:57.5]} 4... e6 {[%clk 0:00:54.4]} 5. d3 {[%clk 0:00:57.2]} 5... Nf6 {[%clk 0:00:53.4]} 6. Nc3 {[%clk 0:00:56.7]} 6... d6 {[%clk 0:00:51.5]} 7. f4 {[%clk 0:00:56.4]} 7... Nd4 {[%clk 0:00:50.7]} 8. Nf3 {[%clk 0:00:55.6]} 8... Be7 {[%clk 0:00:49.8]} 9. Nxd4 {[%clk 0:00:54.4]} 9... cxd4 {[%clk 0:00:49.4]} 10. e5 {[%clk 0:00:49.9]} 10... dxe5 {[%clk 0:00:48.5]} 11. fxe5 {[%clk 0:00:48.7]} 11... Nd7 {[%clk 0:00:48.1]} 12. Ne4 {[%clk 0:00:45.8]} 12... Nxe5 {[%clk 0:00:46.9]} 13. O-O {[%clk 0:00:45.5]} 13... b6 {[%clk 0:00:44.5]} 14. Bh5 {[%clk 0:00:43]} 14... Bb7 {[%clk 0:00:38.4]} 15. Bf4 {[%clk 0:00:39.6]} 15... Bd6 {[%clk 0:00:29.6]} 16. Bxe5 {[%clk 0:00:38.3]} 16... Bxe5 {[%clk 0:00:29]} 17. Bxf7+ {[%clk 0:00:37.5]} 17... Ke7 {[%clk 0:00:28.2]} 18. Bh5 {[%clk 0:00:31.3]} 18... Bxe4 {[%clk 0:00:27.4]} 19. dxe4 {[%clk 0:00:29.8]} 19... d3 {[%clk 0:00:25.2]} 20. Qg4 {[%clk 0:00:23.8]} 20... Bd4+ {[%clk 0:00:22.1]} 21. Kh1 {[%clk 0:00:22.4]} 21... Rg8 {[%clk 0:00:20.1]} 22. Qh4+ {[%clk 0:00:18.6]} 22... Kd6 {[%clk 0:00:18.7]} 23. Qf4+ {[%clk 0:00:16]} 23... Be5 {[%clk 0:00:17.2]} 24. Qe3 {[%clk 0:00:15.7]} 24... Rf8 {[%clk 0:00:15.5]} 25. Rad1 {[%clk 0:00:14.7]} 25... Rxf1+ {[%clk 0:00:14.1]} 26. Rxf1 {[%clk 0:00:14.3]} 26... Kc7 {[%clk 0:00:12.7]} 27. Rd1 {[%clk 0:00:13.7]} 27... Qd6 {[%clk 0:00:11.3]} 28. Rxd3 {[%clk 0:00:11.5]} 28... Qc5 {[%clk 0:00:08.8]} 29. b3 {[%clk 0:00:06.1]} 29... Qxe3 {[%clk 0:00:07.5]} 30. Rxe3 {[%clk 0:00:05.8]} 30... Rd8 {[%clk 0:00:06.7]} 31. h3 {[%clk 0:00:04.1]} 31... Rd1+ {[%clk 0:00:05.9]} 32. Bxd1 {[%clk 0:00:03.1]} 32... Bd4 {[%clk 0:00:04.2]} 33. Bg4 {[%clk 0:00:02.8]} 33... Bxe3 {[%clk 0:00:03.3]} 34. Kh2 {[%clk 0:00:02.6]} 34... Bf4+ {[%clk 0:00:02.3]} 35. Kg1 {[%clk 0:00:01.2]} 35... g6 {[%clk 0:00:01.8]} 36. Kf1 {[%clk 0:00:00.8]} 36... h5 {[%clk 0:00:01.4]} 37. g3 {[%clk 0:00:00.2]} 37... hxg4 {[%clk 0:00:00.9]} 0-1